bitfinex/quotes_SOLUSD_20250204
["timestamp","ask_amount","ask_price","bid_price","bid_amount"]
[1738646355426,1.0,205.31,205.19,0.73059917]
[1738646355621,1.0,205.21,205.12,17.26448155]
[1738646355952,1.0,205.17,205.13,36.20941005]
[1738646356160,1.0,205.32,205.13,36.20941005]
[1738646356161,1.0,205.2,205.16,36.20941005]
[1738646356323,1.0,205.22,205.16,36.20941005]
[1738646356526,1.0,205.2,205.16,36.20941005]
[1738646356847,1.0,205.13,205.12,17.26448155]
[1738646357021,1.0,205.17,205.12,53.4738916]
[1738646357221,1.0,205.22,205.14,36.20941005]
[1738646357462,1.0,205.21,205.14,36.20941005]
[1738646357626,1.0,205.22,205.12,22.870444]
[1738646357824,1.0,205.24,205.18,36.20941005]
[1738646358034,36.20941005,205.4,205.18,36.20941005]
[1738646358035,2.0,205.29,205.22,36.20941005]
[1738646358243,1.0,205.26,205.22,36.20941005]
[1738646358754,1.0,205.26,205.2,36.20941005]
[1738646358960,1.0,205.22,205.19,8.1337]
[1738646359125,1.0,205.23,205.19,8.1337]
[1738646359330,2.0,205.21,205.19,8.1337]
[1738646359539,1.0,205.21,205.19,8.1337]
[1738646359845,1.0,205.23,205.19,8.1337]
[1738646360041,2.0,205.23,205.19,8.1337]
[1738646360244,1.0,205.2,205.19,8.1337]
[1738646360533,1.0,205.19,205.17,2.0423]
[1738646360730,1.0,205.17,205.12,17.26448155]
[1738646360969,1.0,205.15,205.12,17.26448155]
[1738646361139,1.0,205.19,205.12,17.26448155]
[1738646361462,0.73052319,205.29,205.12,17.26448155]
[1738646361463,1.0,205.17,205.12,17.26448155]
[1738646361638,1.0,205.14,205.12,17.26448155]
[1738646361839,2.0,205.14,205.12,17.26448155]
[1738646362038,1.0,205.13,205.12,17.26448155]
[1738646362567,1.0,205.15,205.12,17.26448155]
[1738646362872,1.0,205.14,205.12,17.26448155]
[1738646363062,1.0,205.18,205.12,17.26448155]
[1738646363262,2.0,205.18,205.12,17.26448155]
[1738646363650,1.0,205.13,205.12,17.26448155]
[1738646363843,2.0,205.13,205.12,17.26448155]
[1738646364049,1.0,205.13,205.12,17.26448155]
[1738646364251,1.0,205.17,205.12,17.26448155]
[1738646364458,1.0,205.18,205.14,36.20941005]
[1738646364763,1.0,205.21,205.14,36.20941005]
[1738646364960,2.0,205.25,205.17,0.25098]
[1738646365156,1.0,205.27,205.21,0.12549]
[1738646365354,1.0,205.31,205.23,0.25098]
[1738646365563,1.0,205.32,205.25,0.12549]
[1738646365865,1.0,205.29,205.21,36.20941005]
[1738646366041,1.0,205.3,205.21,36.20941005]
[1738646366378,38.20941005,205.29,205.22,5.12378]
[1738646366538,38.20941005,205.29,205.22,4.8728]
[1738646366741,2.0,205.27,205.2,7.8902]
[1738646366957,36.20941005,205.29,205.21,36.20941005]
[1738646366958,1.0,205.29,205.21,36.20941005]
[1738646367165,1.0,205.31,205.23,36.20941005]
[1738646367359,36.20941005,205.35,205.27,36.20941005]
[1738646367575,1.0,205.34,205.25,36.20941005]
[1738646367950,1.0,205.37,205.2,48.97271005]
[1738646367951,2.0,205.31,205.23,36.20941005]
[1738646368147,0.063,205.31,205.26,4.8718]
[1738646368361,1.0,205.3,205.23,36.20941005]
[1738646368568,2.0,205.28,205.22,4.8728]
[1738646368963,1.0,205.28,205.22,4.8728]
[1738646369148,1.0,205.3,205.23,0.25098]
[1738646369478,1.0,205.3,205.23,36.20941005]
[1738646369650,1.0,205.28,205.22,4.8728]
[1738646370167,1.0,205.3,205.23,36.46039005]
[1738646370471,2.0,205.3,205.23,36.33490005]
[1738646370701,38.20941005,205.3,205.23,0.12549]
[1738646370854,1.0,205.26,205.2,12.7634]
[1738646371177,1.0,205.23,205.2,7.8902]
[1738646371558,1.0,205.18,205.12,17.99523655]
[1738646371870,0.73052319,205.27,205.12,17.99523655]
[1738646371871,1.0,205.15,205.12,22.13948155]
[1738646372051,2.0,205.15,205.12,17.26448155]
[1738646372782,2.0,205.13,205.12,17.26448155]
[1738646375394,1.0,205.13,205.12,17.26448155]
[1738646375556,2.0,205.13,205.12,17.26448155]
[1738646376069,2.0,205.19,205.11,36.20941005]
[1738646376261,1.0,205.19,205.15,36.20941005]
[1738646376659,2.0,205.19,205.15,36.20941005]
[1738646376971,1.0,205.21,205.15,36.20941005]
[1738646377177,2.0,205.23,205.17,36.20941005]
[1738646377370,1.0,205.19,205.15,36.20941005]
[1738646377591,1.0,205.21,205.13,13.2561]
[1738646377592,1.0,205.17,205.13,49.46551005]
[1738646378165,1.0,205.17,205.13,13.2561]
[1738646378472,1.0,205.18,205.13,13.2561]
[1738646378662,1.0,205.2,205.17,1.0]
[1738646379484,1.0,205.18,205.17,1.0]
[1738646380386,1.0,205.21,205.17,5.874]
[1738646380706,1.0,205.23,205.17,42.08341005]
[1738646380886,1.0,205.23,205.17,1.0]
[1738646381085,36.20941005,205.25,205.17,5.8739]
[1738646381086,1.0,205.21,205.17,5.8739]
[1738646381390,1.0,205.19,205.17,1.0]
[1738646381589,2.0,205.19,205.17,1.0]
[1738646381887,1.0,205.19,205.17,1.0]
[1738646382598,37.20941005,205.18,205.17,1.0]
[1738646384485,1.0,205.18,205.17,1.0]
[1738646384684,2.0,205.14,205.13,0.03]
[1738646384894,38.20941005,205.14,205.13,0.03]
[1738646385190,2.0,205.14,205.13,0.03]
[1738646386980,38.20941005,205.14,205.13,0.03]
[1738646387695,2.0,205.14,205.13,0.03]
[1738646388199,1.0,205.14,205.13,0.03]
[1738646388399,2.0,205.14,205.13,0.03]
[1738646388603,1.0,205.14,205.13,0.03]
[1738646388800,1.0,205.16,205.13,0.03]
[1738646389098,2.0,205.16,205.13,0.03]
[1738646389793,1.0,205.18,205.13,36.23941005]
[1738646390002,1.0,205.19,205.15,36.20941005]
[1738646390595,1.0,205.18,205.13,36.23941005]
[1738646390892,1.0,205.28,205.18,0.25098]
[1738646391098,0.063,205.3,205.25,36.20941005]
[1738646391470,0.063,205.3,205.26,0.25098]
[1738646391667,0.063,205.3,205.27,36.20941005]
[1738646391976,37.27241005,205.3,205.21,36.20941005]
[1738646392171,0.063,205.3,205.25,36.20941005]
[1738646392598,0.063,205.3,205.27,36.20941005]
[1738646392797,0.063,205.31,205.29,36.20941005]
[1738646393098,1.0,205.41,205.3,36.82441609]
[1738646393305,1.0,205.4,205.34,36.20941005]
[1738646393471,1.0,205.39,205.34,36.20941005]
[1738646393670,0.063,205.52,205.3,52.94402604]
[1738646393671,1.0,205.45,205.39,0.25098]
[1738646394018,0.063,205.52,205.45,0.25098]
[1738646394313,0.063,205.52,205.5,36.20941005]
[1738646394485,0.063,205.52,205.51,0.3623168]
[1738646394876,1.0,205.63,205.53,20.25098]
[1738646395191,1.0,205.69,205.54,0.25098]
[1738646395494,13.66949864,205.73,205.68,36.20941005]
[1738646395819,28.80381084,205.75,205.62,0.25098]
[1738646395820,1.063,205.75,205.73,20.0]
[1738646395975,0.063,205.75,205.74,36.8207704]
[1738646396396,0.063,205.75,205.7,36.20941005]
[1738646396672,0.063,205.75,205.68,2.0857]
[1738646396876,3.77936099,205.72,205.65,24.94290892]
[1738646397083,0.063,205.75,205.59,8.802]
[1738646397084,36.20941005,205.67,205.59,8.802]
[1738646397325,0.25098,205.8,205.71,28.31285228]
[1738646397326,5.38234833,205.8,205.71,28.31285228]
[1738646397522,72.4188201,205.72,205.57,2.0019]
[1738646397725,36.20941005,205.58,205.57,1.0]
[1738646397935,36.20941005,205.6,205.59,1.0]
[1738646398090,36.20941005,205.62,205.61,2.0]
[1738646398289,36.20941005,205.68,205.67,2.0]
[1738646398490,36.20941005,205.68,205.57,0.12549]
[1738646398491,36.20941005,205.74,205.71,2.0]
[1738646398696,36.20941005,205.74,205.68,1.0]
[1738646398917,36.20941005,205.72,205.68,1.0]
[1738646399218,36.20941005,205.72,205.7,1.0]
[1738646399524,36.20941005,205.72,205.67,1.0]
[1738646399689,36.20941005,205.69,205.57,7.4952015]
[1738646399886,36.20941005,205.58,205.57,7.4952015]
[1738646400512,36.20941005,205.58,205.55,7.4952015]
[1738646400813,36.20941005,205.58,205.57,1.0]
[1738646401013,0.55012674,205.68,205.57,1.0]
[1738646401014,36.20941005,205.66,205.65,1.0]
[1738646401241,36.20941005,205.74,205.69,1.0]
[1738646401394,36.20941005,205.72,205.69,1.0]
[1738646401697,36.20941005,205.7,205.69,1.0]
[1738646401901,36.20941005,205.74,205.71,1.0]
[1738646402133,3.40384877,205.73,205.71,36.20941005]
[1738646402306,1.19894877,205.73,205.72,37.46039005]
[1738646402614,0.063,205.88,205.75,20.0]
[1738646402816,0.063,205.88,205.87,20.0]
[1738646403002,0.063,205.88,205.87,56.33490005]
[1738646403315,0.063,205.88,205.87,56.46039005]
[1738646404033,36.20941005,206.0,205.88,0.25098]
[1738646404195,36.20941005,206.02,205.93,0.25098]
[1738646404396,36.20941005,206.02,205.94,36.33490005]
[1738646404601,36.20941005,206.08,205.96,20.0]
[1738646404802,36.20941005,206.1,205.96,56.33490005]
[1738646405002,36.20941005,206.12,205.97,0.25098]
[1738646405198,36.20941005,206.14,206.04,36.20941005]
[1738646405532,36.20941005,206.16,206.09,20.0]
[1738646405826,36.20941005,206.14,206.06,36.20941005]
[1738646406123,36.20941005,206.12,206.04,36.20941005]
[1738646406327,37.20941005,206.2,206.05,36.20941005]
[1738646406328,36.20941005,206.14,206.05,36.20941005]
[1738646406809,36.20941005,206.12,206.04,0.12549]
[1738646407013,36.20941005,206.14,206.05,36.20941005]
[1738646407318,0.063,206.16,206.13,36.20941005]
[1738646407520,0.063,206.24,206.15,57.20941005]
[1738646407833,0.063,206.24,206.22,36.20941005]
[1738646408020,0.063,206.24,206.23,0.97804616]
[1738646408261,0.063,206.24,206.23,0.12549]
[1738646408534,36.20941005,206.3,206.23,0.12549]
[1738646408837,36.20941005,206.29,206.2,36.20941005]
[1738646409005,36.20941005,206.31,206.25,20.0]
[1738646409208,36.20941005,206.35,206.24,36.20941005]
[1738646409399,36.20941005,206.35,206.26,36.20941005]
[1738646409606,0.063,206.42,206.32,36.20941005]
[1738646409831,0.063,206.42,206.34,41.05571005]
[1738646410035,0.063,206.42,206.36,36.20941005]
[1738646410218,36.27241005,206.42,206.33,36.20941005]
[1738646410422,0.063,206.42,206.33,41.05581005]
[1738646410617,36.20941005,206.38,206.29,36.20941005]
[1738646411345,0.063,206.42,206.22,52.4]
[1738646411346,36.27241005,206.42,206.33,36.20941005]
[1738646411506,36.27241005,206.42,206.34,0.72668696]
[1738646411507,0.063,206.42,206.34,0.72668696]
[1738646411706,36.20941005,206.4,206.31,36.20941005]
[1738646411931,36.20941005,206.38,206.29,36.20941005]
[1738646412944,36.20941005,206.36,206.27,36.20941005]
[1738646413239,0.063,206.42,206.22,52.4]
[1738646413240,36.20941005,206.3,206.22,52.4]
[1738646413438,36.20941005,206.34,206.25,36.20941005]
[1738646413748,36.20941005,206.39,206.31,36.20941005]
[1738646413941,36.20941005,206.4,206.3,36.20941005]
[1738646414238,36.20941005,206.4,206.32,36.20941005]
[1738646414427,36.20941005,206.4,206.3,36.20941005]
[1738646414836,36.27241005,206.42,206.32,36.20941005]
[1738646415140,36.20941005,206.4,206.32,36.20941005]
[1738646415337,0.063,206.42,206.32,20.0]
[1738646415338,36.20941005,206.39,206.32,20.0]
[1738646415542,0.063,206.42,206.37,36.20941005]
[1738646415731,0.063,206.42,206.39,0.25098]
[1738646415929,0.0001,206.43,206.41,4.8447]
[1738646416136,36.20941005,206.58,206.44,20.25098]
[1738646416445,36.20941005,206.58,206.49,36.20941005]
[1738646416620,36.20941005,206.54,206.45,36.20941005]
[1738646416819,36.20941005,206.6,206.51,36.20941005]
[1738646417216,0.063,206.63,206.56,20.0]
[1738646417424,0.063,206.63,206.58,0.25098]
[1738646417642,0.063,206.63,206.62,36.46039005]
[1738646417817,0.063,206.63,206.62,36.93494708]
[1738646418022,0.063,206.65,206.64,20.25098]
[1738646418250,0.063,206.65,206.64,56.93485213]
[1738646418554,36.20941005,206.9,206.72,0.25098]
[1738646418842,0.063,206.96,206.72,0.25098]
[1738646418843,36.20941005,206.89,206.73,0.72510964]
[1738646419042,36.20941005,206.87,206.73,0.72510964]
[1738646419360,36.20941005,206.87,206.78,36.20941005]
[1738646419540,36.20941005,206.85,206.76,36.20941005]
[1738646420068,36.20941005,206.81,206.72,88.50941005]
[1738646420220,36.20941005,206.83,206.74,36.20941005]
[1738646420425,36.20941005,206.77,206.72,52.3]
[1738646420625,36.20941005,206.81,206.73,0.25098]
[1738646420929,36.20941005,206.83,206.72,93.34681005]
[1738646421125,36.20941005,206.85,206.77,36.20941005]
[1738646421430,36.20941005,206.87,206.77,36.20941005]
[1738646421638,36.20941005,206.87,206.79,36.20941005]
[1738646421831,36.20941005,206.83,206.73,41.04661005]
[1738646422142,36.20941005,206.85,206.75,56.20941005]
[1738646422330,36.20941005,206.87,206.77,36.20941005]
[1738646422944,36.20941005,206.89,206.79,36.20941005]
[1738646423535,36.20941005,206.89,206.75,0.72513898]
[1738646423536,36.20941005,206.89,206.81,36.20941005]
[1738646423935,36.20941005,206.89,206.8,4.8354]
[1738646423936,36.20941005,206.87,206.77,36.20941005]
[1738646424143,36.20941005,206.79,206.71,36.20941005]
[1738646424361,36.20941005,206.79,206.69,36.20941005]
[1738646424527,36.20941005,206.77,206.67,36.20941005]
[1738646424732,36.20941005,206.75,206.67,36.20941005]
[1738646424954,36.20941005,206.69,206.61,44.69181005]
[1738646425135,36.20941005,206.67,206.61,8.4824]
[1738646425340,36.20941005,206.63,206.6,52.26]
[1738646426166,36.20941005,206.61,206.53,36.20941005]
[1738646426334,36.20941005,206.55,206.48,36.20941005]
[1738646426537,12.70374547,206.49,206.39,45.47561005]
[1738646426765,36.20941005,206.46,206.39,9.2662]
[1738646427279,0.55012674,206.56,206.39,45.47561005]
[1738646427280,36.20941005,206.48,206.39,45.47561005]
[1738646427435,36.20941005,206.45,206.36,36.20941005]
[1738646427636,36.20941005,206.41,206.32,41.05621005]
[1738646427865,36.20941005,206.41,206.32,36.20941005]
[1738646428138,0.55012674,206.49,206.26,36.20941005]
[1738646428139,36.20941005,206.37,206.26,36.20941005]
[1738646428338,36.20941005,206.4,206.31,0.12549]
[1738646428574,1.0,206.56,206.41,20.0]
[1738646428767,0.55012674,206.6,206.41,20.0]
[1738646428768,36.20941005,206.53,206.44,36.20941005]
[1738646428939,36.20941005,206.55,206.46,36.20941005]
[1738646429287,0.55012674,206.74,206.54,36.20941005]
[1738646429288,36.20941005,206.65,206.54,36.20941005]
[1738646429432,36.20941005,206.65,206.57,36.20941005]
[1738646429637,36.20941005,206.67,206.59,36.20941005]
[1738646429838,0.55012674,206.74,206.51,0.72592669]
[1738646429839,36.20941005,206.69,206.61,36.20941005]
[1738646430332,36.20941005,206.71,206.61,36.20941005]
[1738646430535,36.20941005,206.71,206.56,5.81801285]
[1738646430536,36.20941005,206.71,206.63,36.20941005]
[1738646430740,36.20941005,206.65,206.53,36.20941005]
[1738646430973,0.063,206.65,206.61,36.20941005]
[1738646431484,0.063,206.65,206.57,36.20941005]
[1738646431835,0.063,206.65,206.59,36.20941005]
[1738646432041,0.063,206.65,206.61,36.20941005]
[1738646432240,0.063,206.65,206.63,36.20941005]
[1738646432856,36.20941005,206.81,206.66,0.12549]
[1738646433065,36.20941005,206.83,206.74,36.20941005]
[1738646433241,0.063,206.86,206.78,36.20941005]
[1738646433562,36.20941005,206.83,206.73,36.20941005]
[1738646433766,36.27241005,206.86,206.77,36.20941005]
[1738646434066,0.063,206.86,206.79,36.20941005]
[1738646434269,0.063,206.86,206.82,36.20941005]
[1738646434445,0.063,206.86,206.84,36.20941005]
[1738646434906,0.063,206.86,206.85,0.72488054]
[1738646435406,0.063,206.96,206.91,36.20941005]
[1738646435718,0.063,206.96,206.95,36.20941005]
[1738646435917,0.063,206.96,206.93,36.20941005]
[1738646436224,0.063,206.96,206.91,36.20941005]
[1738646436375,0.063,206.96,206.89,36.20941005]
[1738646436578,36.20941005,206.93,206.85,36.20941005]
[1738646436806,36.20941005,206.91,206.83,36.20941005]
[1738646437014,36.20941005,206.89,206.79,36.20941005]
[1738646437181,36.20941005,206.83,206.75,44.96631005]
[1738646437380,36.20941005,206.83,206.75,8.7569]
[1738646437684,36.20941005,206.79,206.71,36.20941005]
[1738646437885,36.20941005,206.79,206.64,9.95959938]
[1738646437886,36.20941005,206.77,206.67,36.20941005]
[1738646438095,36.20941005,206.75,206.65,36.20941005]
[1738646438302,36.20941005,206.85,206.74,36.20941005]
[1738646438480,36.20941005,206.87,206.78,36.20941005]
[1738646438689,0.063,206.96,206.66,36.20941005]
[1738646438690,36.20941005,206.79,206.66,36.20941005]
[1738646438897,36.20941005,206.74,206.64,9.2343]
[1738646439620,36.20941005,206.68,206.59,36.20941005]
[1738646439779,36.20941005,206.64,206.55,36.20941005]
[1738646439975,36.20941005,206.7,206.51,36.20941005]
[1738646439976,36.20941005,206.6,206.51,36.20941005]
[1738646440180,36.20941005,206.56,206.47,36.20941005]
[1738646440580,36.20941005,206.54,206.45,36.20941005]
[1738646440824,36.20941005,206.6,206.39,0.03]
[1738646440825,36.20941005,206.48,206.39,0.03]
[1738646441001,36.20941005,206.44,206.39,0.03]
[1738646441206,36.20941005,206.42,206.39,0.03]
[1738646441596,36.20941005,206.46,206.39,0.03]
[1738646441908,36.20941005,206.4,206.39,0.03]
[1738646442098,36.20941005,206.49,206.39,36.23941005]
[1738646442273,36.20941005,206.53,206.43,36.20941005]
[1738646442480,36.20941005,206.57,206.49,36.20941005]
[1738646442678,36.20941005,206.58,206.53,0.063]
[1738646442881,1.0,206.68,206.53,0.063]
[1738646443098,1.0,206.71,206.53,0.063]
[1738646443099,0.55012674,206.67,206.54,36.51943525]
[1738646443402,0.55012674,206.72,206.58,36.51943525]
[1738646443597,0.55012674,206.72,206.56,36.51943525]
[1738646443803,1.0,206.73,206.54,36.51943525]
[1738646444107,0.25098,206.71,206.54,36.51943525]
[1738646444290,0.55012674,206.7,206.58,36.51943525]
[1738646444491,1.12549,206.69,206.54,36.51943525]
[1738646444687,0.12549,206.67,206.53,0.063]
[1738646444891,0.12549,206.65,206.53,0.063]
[1738646445115,0.54991384,206.72,206.56,36.51943525]
[1738646445413,0.54991384,206.72,206.54,36.51943525]
[1738646445580,0.54991384,206.72,206.53,0.063]
[1738646445581,0.12549,206.65,206.53,0.063]
[1738646445782,0.25098,206.63,206.53,0.063]
[1738646446110,0.55012674,206.62,206.45,36.51943525]
[1738646446310,0.55012674,206.66,206.51,36.51943525]
[1738646446480,0.12549,206.65,206.53,36.51943525]
[1738646446683,0.55012674,206.64,206.53,36.51943525]
[1738646446885,0.55012674,206.68,206.53,36.51943525]
[1738646447094,1.0,206.77,206.59,36.51943525]
[1738646447280,0.55012674,206.76,206.59,36.51943525]
[1738646447477,0.55012674,206.76,206.61,36.51943525]
[1738646447685,0.12549,206.75,206.61,36.51943525]
[1738646447987,0.55012674,206.74,206.61,36.51943525]
[1738646448185,0.55012674,206.77,206.63,36.51943525]
[1738646448484,2.0,206.81,206.65,36.51943525]
[1738646448687,0.55012674,206.8,206.63,36.51943525]
[1738646448886,0.55012674,206.8,206.58,36.51943525]
[1738646448887,0.25098,206.72,206.58,36.51943525]
[1738646449091,0.25098,206.68,206.52,36.51943525]
[1738646449304,0.25098,206.64,206.48,36.51943525]
[1738646449609,0.55012674,206.63,206.5,36.51943525]
[1738646449809,0.55012674,206.63,206.46,36.51943525]
[1738646450006,0.12549,206.62,206.46,36.51943525]
[1738646450227,0.55012674,206.67,206.5,36.51943525]
[1738646450521,0.55012674,206.67,206.42,9.4050199]
[1738646450522,1.0,206.6,206.46,36.51943525]
[1738646450689,0.80110674,206.59,206.42,45.19813525]
[1738646450889,1.80110674,206.59,206.42,45.19813525]
[1738646451085,1.80110674,206.59,206.4,36.51943525]
[1738646451310,0.67561674,206.59,206.46,36.51943525]
[1738646451480,0.67561674,206.59,206.44,36.51943525]
[1738646451687,0.67561674,206.59,206.42,36.51943525]
[1738646451886,0.12549,206.58,206.42,36.51943525]
[1738646452087,0.25098,206.56,206.44,36.51943525]
[1738646452307,0.12549,206.54,206.4,36.51943525]
[1738646452499,33.41184853,206.61,206.39,0.03]
[1738646452500,1.0,206.52,206.39,0.03]
[1738646452809,0.12549,206.46,206.39,0.03]
[1738646452998,0.55012674,206.45,206.32,36.58243525]
[1738646453193,0.25098,206.44,206.32,0.063]
[1738646453394,0.12549,206.42,206.32,0.063]
[1738646453595,0.12549,206.42,206.22,9.3143]
[1738646453596,0.25098,206.4,206.22,36.51943525]
[1738646453912,1.0,206.38,206.22,36.51943525]
[1738646454093,1.0,206.36,206.2,36.51943525]
[1738646454294,1.0,206.34,206.16,36.51943525]
[1738646454493,0.55012674,206.41,206.28,36.51943525]
[1738646454690,0.55012674,206.44,206.32,36.51943525]
[1738646454998,0.15,206.59,206.34,36.51943525]
[1738646454999,0.55012674,206.5,206.34,36.51943525]
[1738646455528,0.55012674,206.5,206.36,36.51943525]
[1738646455693,1.55012674,206.5,206.32,36.58243525]
[1738646456012,1.25098,206.37,206.19,36.51943525]
[1738646456331,0.25098,206.28,206.18,0.03]
[1738646456491,0.55012674,206.27,206.18,0.03]
[1738646456693,1.0,206.25,206.18,0.03]
[1738646456899,0.55012674,206.24,206.18,0.03]
[1738646457113,1.0,206.28,206.18,0.03]
[1738646457317,0.55012674,206.27,206.18,0.03]
[1738646457537,0.55012674,206.29,206.18,0.03]
[1738646457737,0.55012674,206.37,206.23,36.51943525]
[1738646457948,0.55012674,206.4,206.23,36.51943525]
[1738646458104,0.55012674,206.4,206.25,36.51943525]
[1738646458304,1.0,206.49,206.2,36.51943525]
[1738646458305,0.55012674,206.42,206.27,36.51943525]
[1738646458505,0.55012674,206.42,206.31,36.51943525]
[1738646458704,0.55012674,206.47,206.31,36.51943525]
[1738646458905,0.55012674,206.47,206.29,36.51943525]
[1738646459101,0.12549,206.46,206.27,36.51943525]
[1738646459333,0.55012674,206.45,206.27,36.51943525]
[1738646459532,0.55012674,206.51,206.33,36.51943525]
[1738646459738,0.55012674,206.51,206.37,36.51943525]
[1738646459952,0.55012674,206.51,206.3,36.51943525]
[1738646459953,0.55012674,206.56,206.48,36.51943525]
[1738646460244,0.03,206.63,206.54,36.51943525]
[1738646460450,0.03,206.63,206.61,36.51943525]
[1738646460903,0.55012674,206.83,206.73,36.51943525]
[1738646461104,0.03,206.84,206.75,36.51943525]
[1738646461314,0.03,206.84,206.69,36.51943525]
[1738646461315,0.58012674,206.84,206.69,36.51943525]
[1738646461515,1.0,206.82,206.59,0.72548282]
[1738646461732,1.0,206.8,206.59,36.51943525]
[1738646461909,0.55012674,206.79,206.59,36.51943525]
[1738646462111,0.55012674,206.79,206.61,36.51943525]
[1738646462313,0.55012674,206.79,206.67,36.51943525]
[1738646462619,0.58012674,206.84,206.73,36.51943525]
[1738646462807,0.03,206.84,206.77,36.51943525]
[1738646463248,0.03,206.84,206.79,36.51943525]
[1738646463732,0.03,206.84,206.72,37.24462132]
[1738646463934,0.03,206.84,206.76,36.51943525]
[1738646464320,0.03,206.84,206.78,36.51943525]
[1738646464730,0.03,206.84,206.8,36.51943525]
[1738646465133,0.03,206.84,206.82,36.51943525]
[1738646465440,0.03,206.84,206.79,13.41184853]
[1738646465611,0.03,206.84,206.76,36.51943525]
[1738646465809,0.03,206.84,206.74,36.51943525]
[1738646466313,0.03,206.84,206.71,8.7893]
[1738646466524,0.28098,206.84,206.71,8.7893]
[1738646466728,0.12549,206.82,206.68,36.51943525]
[1738646467016,0.55012674,206.81,206.66,36.51943525]
[1738646467538,0.55012674,206.81,206.64,36.51943525]
[1738646467723,0.55012674,206.81,206.68,36.51943525]
[1738646467932,0.58012674,206.84,206.68,36.51943525]
[1738646468136,0.58012674,206.84,206.7,36.51943525]
[1738646468319,0.03,206.84,206.74,36.51943525]
[1738646468729,0.03,206.84,206.76,36.51943525]
[1738646468939,0.03,206.84,206.8,36.51943525]
[1738646469220,0.03,206.84,206.83,13.41184853]
[1738646469425,0.03,206.84,206.8,36.51943525]
[1738646469834,0.03,206.84,206.78,36.51943525]
[1738646470039,0.03,206.84,206.77,36.51943525]
[1738646470422,0.03,206.9,206.81,36.51943525]
[1738646470914,0.03,206.9,206.85,36.51943525]
[1738646471430,0.03,206.9,206.83,36.51943525]
[1738646471744,0.03,206.9,206.87,36.51943525]
[1738646472040,0.03,206.9,206.85,36.51943525]
[1738646472252,0.03,206.9,206.89,49.93128378]
[1738646473080,0.03,206.9,206.84,36.51943525]
[1738646473362,0.03,206.9,206.89,13.41184853]
[1738646473860,0.03,206.9,206.86,36.51943525]
[1738646474024,0.063,206.96,206.89,36.51943525]
[1738646474224,0.063,206.96,206.93,36.51943525]
[1738646474441,0.063,206.96,206.95,36.51943525]
[1738646474858,0.063,206.96,206.93,36.51943525]
[1738646475032,0.063,206.96,206.9,36.51943525]
[1738646475226,0.063,206.96,206.94,36.51943525]
[1738646475563,0.063,206.96,206.9,36.51943525]
[1738646475769,0.063,206.96,206.92,36.51943525]
[1738646475925,0.063,206.96,206.94,36.51943525]
[1738646476338,0.063,206.96,206.95,13.41184853]
[1738646476531,0.063,206.96,206.95,14.13627468]
[1738646477246,0.063,206.96,206.95,15.13627468]
[1738646477450,0.063,206.96,206.95,18.96827468]
[1738646477631,0.063,206.96,206.95,4.832]
[1738646478152,0.063,206.96,206.95,18.24384853]
[1738646478328,0.063,206.96,206.95,19.24384853]
[1738646478529,0.03,207.11,206.94,37.2438842]
[1738646478530,0.03,207.11,207.02,1.0]
[1738646478725,0.03,207.11,207.06,36.51943525]
[1738646478927,0.03,207.11,207.09,36.51943525]
[1738646479186,0.03,207.11,207.1,1.72403576]
[1738646479330,0.03,207.11,207.1,51.65531954]
[1738646479534,0.55012674,207.39,207.17,13.41184853]
[1738646479759,0.55012674,207.39,207.21,36.51943525]
[1738646480592,0.55012674,207.4,207.25,36.51943525]
[1738646480903,1.930025,207.43,207.27,36.51943525]
[1738646481050,0.55012674,207.41,207.19,36.51943525]
[1738646481251,0.55012674,207.41,207.13,4.8278]
[1738646481252,0.12549,207.38,207.15,36.51943525]
[1738646481592,0.12549,207.36,207.19,36.51943525]
[1738646481766,0.25098,207.33,207.15,36.51943525]
[1738646481967,20.0,207.31,207.13,36.51943525]
[1738646482166,0.55012674,207.32,207.1,0.72375423]